bitfinex/quotes_ETHUSD_20260310
["timestamp","ask_amount","ask_price","bid_price","bid_amount"]
[1773116141087,0.002,2034.7,2034.4,0.47567927]
[1773116142797,0.002,2034.7,2034.5,1.70448241]
[1773116143607,0.002,2034.7,2034.5,1.22880314]
[1773116143938,0.002,2034.7,2034.5,1.70448241]
[1773116144098,0.002,2035.0,2034.6,0.47567927]
[1773116145007,0.002,2035.0,2034.7,1.70436163]
[1773116147530,0.002,2035.0,2034.8,0.47567927]
[1773116148223,0.002,2035.4,2035.0,0.47567927]
[1773116149221,0.002,2035.4,2035.1,1.67895043]
[1773116149407,0.002,2035.4,2035.2,0.45050957]
[1773116149623,0.002,2035.7,2035.2,0.45050957]
[1773116151609,0.002,2035.7,2035.3,1.22832014]
[1773116152016,0.002,2035.8,2035.5,0.45050957]
[1773116152350,0.002,2036.1,2035.8,0.45050957]
[1773116154245,0.002,2036.1,2035.9,1.22795815]
[1773116155544,0.45601761,2036.1,2035.4,0.45050957]
[1773116156247,0.45601761,2036.1,2035.5,1.67870902]
[1773116156444,1.22984212,2036.1,2035.5,1.22819945]
[1773116156645,0.002,2036.1,2035.6,0.45050957]
[1773116158364,0.002,2036.1,2035.8,0.45050957]
[1773116158532,0.002,2035.9,2035.8,0.45050957]
[1773116158730,0.002,2036.1,2035.8,0.45050957]
[1773116159871,0.002,2036.4,2035.9,0.45050957]
[1773116160563,0.002,2036.4,2036.0,1.6784074]
[1773116161457,0.002,2036.4,2036.1,0.45050957]
[1773116162380,0.77791303,2036.8,2036.2,0.45050957]
[1773116162731,2.00532991,2036.8,2036.3,1.6782265]
[1773116163659,2.4715409,2036.8,2036.3,0.45050957]
[1773116165083,0.46621099,2036.7,2035.9,0.46557022]
[1773116165283,0.46621099,2036.7,2035.7,0.46557022]
[1773116165484,0.46621099,2036.7,2035.5,3.0957583]
[1773116165673,0.46621099,2036.7,2035.3,1.69483002]
[1773116165875,0.46621099,2036.7,2035.4,5.37857911]
[1773116166320,0.46621099,2036.7,2035.5,0.46557022]
[1773116166513,0.46621099,2036.5,2035.5,0.46557022]
[1773116166718,0.46621099,2036.5,2035.6,3.38356618]
[1773116167003,0.46621099,2036.5,2035.7,0.46557022]
[1773116167209,1.69386763,2036.4,2035.8,1.22801846]
[1773116167789,0.46621099,2036.4,2035.8,1.69358868]
[1773116168210,0.46621099,2036.4,2035.6,1.69368571]
[1773116168515,0.46621099,2036.4,2035.5,1.69372238]
[1773116168709,0.46621099,2036.4,2035.6,0.46557022]
[1773116169106,0.46621099,2036.4,2035.6,3.38356618]
[1773116169319,1.22763583,2036.5,2035.9,0.46557022]
[1773116169491,0.46621099,2036.4,2035.7,1.69361056]
[1773116170386,0.46621099,2036.4,2035.7,1.22804034]
[1773116170717,0.46621099,2036.4,2035.9,0.001]
[1773116171419,1.22771693,2036.3,2035.9,0.001]
[1773116172023,1.69392792,2036.3,2035.9,0.001]
[1773116173743,0.46621099,2036.2,2035.7,1.22907478]
[1773116173921,0.46621099,2036.2,2035.7,1.22906396]
[1773116174099,0.46621099,2036.2,2035.7,1.69463418]
[1773116176199,1.69401437,2036.2,2035.7,1.69463418]
[1773116176400,1.69401437,2036.2,2035.7,0.46657022]
[1773116177625,1.69401437,2036.2,2035.7,1.69463963]
[1773116178496,1.22774395,2036.3,2035.8,0.46557022]
[1773116179827,1.6939146,2036.4,2035.8,0.46557022]
[1773116180627,1.6939146,2036.4,2035.9,1.69352837]
[1773116181722,1.69387485,2036.4,2035.9,1.69352837]
[1773116181925,0.46621099,2036.4,2035.9,1.69352837]
[1773116182229,1.69386824,2036.4,2035.9,1.69352837]
[1773116182729,1.69386824,2036.4,2035.9,0.46557022]
[1773116182931,0.46621099,2036.3,2035.7,0.001]
[1773116183330,0.46621099,2036.3,2036.0,0.001]
[1773116183553,0.002,2036.1,2036.0,0.001]
[1773116185655,0.46821099,2036.1,2035.8,0.001]
[1773116185853,1.259,2036.0,2035.5,0.001]
[1773116186051,0.46621099,2035.9,2035.5,0.001]
[1773116187114,1.69422945,2035.8,2035.5,0.001]
[1773116187549,0.46621099,2035.7,2035.5,0.001]
[1773116189627,1.22813912,2035.6,2035.5,0.001]
[1773116190330,1.69435011,2035.6,2035.5,0.001]
[1773116190532,0.46621099,2035.5,2035.3,0.001]
[1773116190734,1.72621099,2035.5,2035.3,0.001]
[1773116191140,1.22813912,2035.6,2035.3,0.001]
[1773116191141,3.38070587,2036.4,2035.3,0.46657022]
[1773116191354,6.76141174,2037.0,2035.3,0.46657022]
[1773116191355,0.46821099,2036.3,2035.6,0.46557022]
[1773116191558,1.22778189,2036.2,2035.6,0.46557022]
[1773116191761,1.22778189,2036.2,2035.6,1.69365656]
[1773116193154,1.69399288,2036.2,2035.6,1.69365656]
[1773116193352,1.69399288,2036.2,2035.4,1.69379404]
[1773116193353,0.46821099,2036.1,2035.4,1.69379404]
[1773116193558,0.48453436,2036.7,2035.5,0.45679061]
[1773116193759,0.48453436,2036.5,2035.7,1.22807879]
[1773116193968,0.48453436,2036.5,2035.6,1.68488568]
[1773116194487,0.48453436,2036.4,2035.4,0.45679061]
[1773116194659,0.48453436,2036.4,2035.3,1.68608436]
[1773116194828,0.48453436,2036.4,2035.3,1.22931341]
[1773116195026,0.48453436,2036.4,2035.3,1.22931915]
[1773116195848,0.48453436,2036.2,2035.6,0.001]
[1773116196049,0.48653436,2036.2,2035.6,0.001]
[1773116197551,0.48453436,2036.1,2035.4,0.001]
[1773116197939,0.48453436,2035.9,2035.4,0.001]
[1773116198144,0.48453436,2035.7,2035.4,0.001]
[1773116200668,1.22813912,2035.6,2035.4,0.001]
[1773116200968,1.71267348,2035.6,2035.4,0.001]
[1773116201868,0.48453436,2035.5,2035.1,0.001]
[1773116202750,1.26,2035.6,2035.1,0.45779061]
[1773116203060,1.74453436,2035.6,2035.1,0.45779061]
[1773116203261,2.97268973,2035.6,2035.1,0.45779061]
[1773116203778,0.48453436,2035.5,2035.1,0.001]
[1773116204666,1.71279416,2035.4,2035.1,0.001]
[1773116206173,0.48453436,2035.4,2035.1,0.001]
[1773116206670,1.71279899,2035.4,2035.1,0.001]
[1773116206844,0.48453436,2035.3,2035.1,0.001]
[1773116207045,0.48453436,2035.3,2034.8,1.22958368]
[1773116207046,0.48453436,2035.3,2034.8,0.001]
[1773116207971,0.48453436,2035.1,2034.8,0.001]
[1773116208148,1.263,2035.0,2034.8,0.001]
[1773116208470,1.263,2035.0,2034.5,0.001]
[1773116208471,0.48453436,2034.9,2034.5,0.001]
[1773116208676,0.48453436,2034.9,2034.3,0.001]
[1773116209438,0.48453436,2034.8,2034.3,0.001]
[1773116210075,0.48453436,2034.6,2034.3,0.001]
[1773116210374,1.22868236,2034.7,2034.3,0.001]
[1773116210375,0.48453436,2034.4,2034.3,0.001]
[1773116210773,0.48453436,2035.3,2034.3,0.001]
[1773116210976,0.48453436,2035.0,2034.3,0.45779061]
[1773116211151,1.74853436,2035.2,2034.3,0.45779061]
[1773116211659,0.46934533,2035.1,2034.3,0.45779061]
[1773116212257,0.46934533,2034.9,2034.3,1.68666121]
[1773116215073,1.6979673,2034.8,2034.3,0.001]
[1773116215249,1.6979673,2034.8,2034.3,1.22991364]
[1773116216347,0.46934533,2034.8,2034.3,1.22991364]
[1773116216881,1.265,2034.7,2034.4,0.46429466]
[1773116217182,1.265,2034.7,2034.4,1.22885378]
[1773116217382,1.265,2034.7,2034.4,1.69314844]
[1773116217680,2.96302936,2034.7,2034.2,0.46429466]
[1773116217847,2.96302936,2034.7,2034.0,0.001]
[1773116217848,2.96302936,2034.7,2034.1,1.69328329]
[1773116218048,1.265,2034.7,2034.2,0.46429466]
[1773116219175,1.265,2034.7,2034.3,1.22892395]
[1773116219385,1.265,2034.7,2034.3,1.69321861]
[1773116220078,1.265,2034.7,2034.4,0.46429466]
[1773116220385,1.265,2035.1,2034.4,0.46429466]
[1773116221386,1.265,2035.1,2034.6,0.46429466]
[1773116221772,2.49344125,2035.1,2034.6,0.46429466]
[1773116221983,0.002,2034.8,2034.5,1.22980314]
[1773116222159,0.002,2034.8,2034.5,0.001]
[1773116222487,0.47134533,2034.8,2034.5,0.001]
[1773116222871,0.002,2034.8,2034.5,0.001]
[1773116223188,1.265,2034.7,2034.5,0.001]
[1773116223386,2.94432445,2034.7,2034.5,0.001]
[1773116223685,1.71561583,2034.7,2034.5,0.001]
[1773116224385,1.265,2034.7,2034.5,0.001]
[1773116224591,0.002,2035.1,2034.6,0.48560683]
[1773116224800,1.265,2035.0,2034.6,0.48560683]
[1773116225101,1.265,2035.0,2034.5,0.001]
[1773116225393,1.67922448,2034.9,2034.5,0.001]
[1773116225756,0.45061583,2034.8,2034.5,0.001]
[1773116226561,0.45061583,2034.8,2034.3,0.001]
[1773116227112,6.1790959,2035.0,2034.3,0.48660683]
[1773116227113,0.45061583,2035.0,2034.3,0.48660683]
[1773116227298,1.266,2034.9,2034.4,0.48560683]
[1773116227590,1.266,2034.9,2034.6,0.48560683]
[1773116228191,1.266,2034.9,2034.5,1.22880314]
[1773116228375,1.71661583,2034.9,2034.4,1.22883463]
[1773116228693,1.266,2034.9,2034.4,1.71444146]
[1773116229258,1.266,2034.9,2034.5,0.48560683]
[1773116231386,1.266,2034.9,2034.6,1.22874275]
[1773116231894,1.266,2034.9,2034.5,1.71436986]
[1773116232191,1.266,2034.9,2034.4,1.22881694]
[1773116232192,2.49456543,2034.9,2034.4,1.22881694]
[1773116232372,1.267,2034.9,2034.4,1.71442377]
[1773116233290,1.267,2034.9,2034.5,0.48560683]
[1773116233492,1.267,2034.9,2034.5,1.71439387]
[1773116233661,1.267,2034.9,2034.6,0.48560683]
[1773116234897,1.267,2034.9,2034.7,0.001]
[1773116235761,2.94818412,2034.9,2034.7,0.001]
[1773116235966,1.269,2034.9,2034.7,0.001]
[1773116236366,1.268,2034.8,2034.7,0.001]
[1773116238366,2.49662197,2034.8,2034.7,0.001]
[1773116238566,2.49662197,2034.8,2034.5,0.001]
[1773116238775,0.45061583,2034.7,2034.3,0.001]
[1773116238976,0.45061583,2034.7,2034.2,0.001]
[1773116239894,0.45061583,2034.5,2034.2,0.001]
[1773116241574,2.49674275,2034.6,2034.2,0.001]
[1773116241794,0.45061583,2034.5,2034.2,0.001]
[1773116244601,0.45061583,2034.5,2033.8,0.001]
[1773116244602,0.45061583,2034.4,2033.8,0.001]
[1773116244800,0.45061583,2034.4,2033.8,0.48660683]
[1773116245207,0.45061583,2034.4,2033.8,0.001]
[1773116246678,0.45061583,2034.2,2033.8,0.001]
[1773116246877,1.269,2034.1,2033.8,0.001]
[1773116247078,0.45061583,2034.0,2033.2,0.001]
[1773116247496,0.45061583,2033.9,2033.2,0.001]
[1773116247717,3.38070587,2034.0,2032.9,1.71637613]
[1773116247718,0.45061583,2033.6,2032.9,1.71637613]
[1773116248015,1.269,2033.5,2033.0,0.48560683]
[1773116248306,1.269,2033.5,2033.1,0.48560683]
[1773116248495,1.269,2033.5,2032.9,1.71637613]
[1773116248876,1.71961583,2033.5,2032.9,1.71637613]
[1773116249410,1.71961583,2033.5,2033.0,0.48560683]
[1773116249587,2.94902441,2033.5,2033.0,0.48560683]
[1773116249997,1.71961583,2033.5,2033.0,0.48560683]
[1773116250407,2.94902536,2033.5,2033.0,0.48560683]
[1773116250708,1.269,2033.5,2033.0,0.48560683]
[1773116251314,1.269,2033.5,2033.1,0.48560683]
[1773116251611,1.269,2033.5,2033.0,0.48560683]
[1773116252402,1.2293186,2033.7,2033.0,0.48560683]
[1773116252583,1.27,2033.6,2033.0,0.48560683]
[1773116254102,1.27,2033.6,2033.1,1.2296493]
[1773116254303,1.27,2033.6,2033.1,1.68438061]
[1773116255083,1.27,2033.6,2033.2,0.45473131]
[1773116256982,1.27,2033.6,2033.3,1.22952835]
[1773116259306,1.27,2033.6,2033.0,0.45473131]
[1773116259307,0.48954867,2033.5,2033.0,0.45473131]
[1773116260538,0.48954867,2033.5,2032.9,0.001]
[1773116261021,0.48954867,2033.3,2032.9,0.001]
[1773116261612,0.48954867,2033.3,2033.0,0.001]
[1773116261992,0.002,2033.4,2033.0,0.45573131]
[1773116262189,1.272,2033.4,2033.0,0.45573131]
[1773116263928,0.002,2033.6,2033.2,0.45473131]
[1773116264225,1.269,2033.5,2033.2,0.45473131]
[1773116265931,1.269,2033.5,2033.2,1.6843158]
[1773116267527,0.002,2033.6,2033.2,1.6843158]
[1773116267730,1.271,2033.6,2033.2,1.6843158]
[1773116269126,1.271,2033.6,2033.3,0.45473131]
[1773116270124,0.002,2033.6,2033.3,0.45473131]
[1773116270331,1.269,2033.8,2033.5,0.45473131]
[1773116274429,0.002,2033.6,2033.5,0.45473131]
[1773116274811,0.002,2033.6,2033.3,1.23048336]
[1773116275011,0.002,2033.6,2033.3,0.48581969]
[1773116277134,4.91721482,2034.5,2033.6,0.48481969]
[1773116277135,1.269,2034.4,2033.6,0.48481969]
[1773116277428,1.269,2034.4,2034.0,0.48481969]
[1773116277798,0.002,2034.5,2034.0,0.48481969]
[1773116278708,0.002,2034.7,2034.3,0.48481969]
[1773116278921,0.002,2034.7,2034.5,0.48481969]
[1773116280312,0.47171464,2034.7,2034.1,0.48481969]
[1773116280511,0.002,2034.7,2034.2,0.48481969]
[1773116281116,0.002,2034.7,2034.3,1.71374364]
[1773116281636,0.002,2034.7,2034.4,0.48481969]
[1773116283134,0.002,2034.7,2034.2,1.71380405]
[1773116283714,0.002,2034.7,2034.2,1.22898436]
[1773116283919,0.002,2034.7,2034.3,0.45246298]
[1773116284807,0.002,2035.0,2034.6,0.45246298]
[1773116285237,0.002,2035.0,2034.7,1.68114534]
[1773116286124,0.002,2035.0,2034.8,0.45246298]
[1773116286634,0.002,2035.2,2034.7,4.61816035]
[1773116286942,1.73706511,2035.8,2035.1,0.45246298]
[1773116287506,0.47206511,2036.1,2035.4,0.45246298]
[1773116287909,0.47206511,2036.0,2035.2,1.2283805]
[1773116288145,1.22788244,2036.1,2035.3,0.45246298]
[1773116288621,1.22788244,2036.1,2035.4,0.45246298]
[1773116288952,1.70187723,2036.2,2035.4,0.45246298]
[1773116289614,1.70187723,2036.2,2035.5,1.22819945]
[1773116289814,0.47206511,2036.1,2035.4,1.68067686]
[1773116290712,0.47206511,2036.1,2035.3,1.22829207]
[1773116290940,0.47206511,2036.1,2035.0,0.45246298]
[1773116291944,0.47206511,2035.9,2035.1,1.22844086]
[1773116292645,0.47206511,2035.9,2035.1,1.68090384]
[1773116293017,0.47206511,2035.9,2035.2,0.45246298]
[1773116293538,0.47206511,2035.9,2035.1,1.22844086]
[1773116293744,0.47206511,2035.9,2035.1,0.45246298]
[1773116293938,0.47206511,2035.9,2034.9,1.68102458]
[1773116293939,0.47206511,2035.7,2034.9,1.68102458]
[1773116294244,1.73606511,2035.6,2034.9,1.68102458]
[1773116294438,0.47206511,2035.5,2034.9,1.68102458]
[1773116294827,1.264,2035.6,2035.0,0.45246298]
[1773116295026,1.73606511,2035.6,2035.0,0.45246298]
[1773116295237,0.47206511,2035.5,2034.9,1.2285616]
[1773116295840,1.264,2035.6,2035.0,0.45246298]
[1773116296044,1.22813912,2035.6,2035.2,0.45246298]
[1773116296220,2.49113912,2035.6,2035.2,0.45246298]
[1773116296426,1.263,2035.6,2035.2,0.45246298]
[1773116297247,0.47206511,2035.5,2034.9,1.22853813]
[1773116297944,0.47206511,2035.5,2034.9,1.68100111]
[1773116298150,1.2282187,2035.5,2035.0,0.45246298]
[1773116298319,0.002,2035.4,2035.0,0.45246298]
[1773116301248,0.002,2035.4,2035.0,1.68093514]
[1773116301667,0.47406511,2035.4,2034.8,0.45246298]
[1773116302169,0.002,2035.4,2034.8,0.45246298]
[1773116303947,0.002,2035.4,2034.9,1.2285616]
[1773116304151,0.002,2035.4,2034.9,1.68102458]
[1773116304626,1.265,2035.4,2034.9,1.68102458]
[1773116305752,1.265,2035.4,2034.8,4.91433582]
[1773116305753,0.47206511,2035.3,2034.8,1.2285832]
[1773116306331,0.47206511,2035.2,2034.5,0.45346298]
[1773116306546,0.47206511,2035.2,2034.6,1.22869817]
[1773116307643,0.47206511,2035.2,2034.6,1.68116115]
[1773116308053,0.47206511,2035.2,2034.5,0.001]
[1773116308757,0.47206511,2035.0,2034.5,0.001]
[1773116311874,1.70062671,2034.9,2034.8,0.001]
[1773116312434,2.96462671,2034.9,2034.8,0.001]
[1773116312635,1.73606511,2034.9,2034.8,0.001]
[1773116313194,0.002,2035.2,2034.8,0.001]
[1773116313469,1.264,2035.5,2034.9,0.4696707]
[1773116313967,2.49224456,2035.5,2034.9,1.69819591]
[1773116314163,2.49224456,2035.5,2035.0,0.4696707]
[1773116315155,2.94525292,2035.5,2035.0,0.4696707]
[1773116315358,2.94525292,2035.5,2034.9,1.22852521]
[1773116315865,1.68125292,2035.5,2034.9,1.22852521]
[1773116316071,1.264,2035.3,2034.8,1.69928182]
[1773116316966,1.264,2035.3,2034.9,0.4696707]
[1773116317146,1.71700836,2035.3,2034.8,0.001]
[1773116317558,0.45300836,2035.2,2034.8,0.001]
[1773116318067,0.45300836,2035.0,2034.8,0.001]
[1773116320285,1.2285616,2034.9,2034.8,0.001]
[1773116320490,1.68156996,2034.9,2034.5,0.001]
[1773116320664,1.265,2034.8,2034.5,0.4706707]
[1773116323183,0.45300836,2034.7,2034.0,0.001]
[1773116323365,0.45300836,2034.3,2033.3,1.23051212]
[1773116323558,0.45300836,2034.1,2033.3,0.001]
[1773116324165,0.45300836,2033.7,2033.3,0.001]
[1773116324364,0.45300836,2033.5,2032.9,0.001]
[1773116325467,0.45300836,2033.3,2032.9,0.001]
[1773116326073,1.22946788,2033.4,2032.9,0.001]
[1773116326276,1.267,2033.3,2032.9,0.001]
[1773116327415,1.267,2033.3,2032.9,1.23077027]
[1773116327715,1.267,2033.3,2033.0,0.4706707]
[1773116328597,1.267,2033.3,2033.0,0.001]
[1773116329090,1.268,2033.7,2033.0,0.4706707]
[1773116329487,2.49730706,2033.7,2033.1,1.2296493]
[1773116330089,1.22930706,2033.7,2033.1,1.2296493]
[1773116330279,2.49830706,2033.7,2033.1,1.2296493]
[1773116330480,2.49830706,2033.7,2033.1,1.70819709]
[1773116331704,1.269,2033.7,2033.1,1.2296493]
[1773116331892,4.91586903,2034.3,2033.2,0.47854779]
[1773116331893,0.47138084,2034.3,2033.2,0.47854779]
[1773116332079,1.269,2034.2,2033.2,0.47854779]
[1773116332279,1.269,2034.2,2033.1,1.2296493]
[1773116332280,1.269,2034.2,2033.4,0.47854779]
[1773116333423,1.27,2034.2,2033.4,0.47854779]
[1773116334020,2.49891056,2034.4,2033.6,0.47854779]
[1773116334311,1.22891056,2034.4,2033.6,0.47854779]
[1773116334890,1.7002914,2034.4,2033.6,0.47854779]
[1773116335306,1.22892395,2034.3,2033.6,0.47854779]
[1773116335501,2.49881019,2034.5,2033.7,0.47854779]
[1773116335708,1.22876923,2034.6,2033.7,0.47854779]
[1773116335926,1.22876923,2034.6,2033.9,0.47854779]
[1773116336125,1.70015007,2034.6,2033.9,0.47854779]
[1773116336928,0.002,2034.1,2033.8,1.22922607]
[1773116337166,0.47138084,2034.0,2033.0,0.47954779]
[1773116337327,0.47138084,2033.8,2033.0,0.001]
[1773116337996,1.22928652,2033.7,2033.0,0.001]
[1773116338703,1.70066736,2033.7,2033.0,0.001]
[1773116345057,1.70066736,2033.7,2033.0,0.47798569]
[1773116348134,1.276,2033.6,2033.0,1.70768891]
[1773116348335,1.276,2033.6,2033.2,0.47698569]
[1773116348538,1.276,2034.0,2033.4,0.47698569]
[1773116348937,1.276,2034.0,2033.5,0.47798569]
[1773116349117,0.002,2033.6,2033.5,0.47798569]
[1773116349326,1.23107273,2034.1,2033.5,0.47798569]
[1773116349522,0.002,2033.8,2033.5,0.47798569]
[1773116350427,1.23107273,2034.1,2033.7,0.47698569]
[1773116350428,0.002,2034.1,2033.7,0.47698569]
[1773116351033,0.002,2034.1,2033.6,1.22934697]
[1773116351034,0.004,2034.1,2033.6,1.22934697]
[1773116351233,0.004,2034.1,2033.5,4.91846747]
[1773116351234,0.47335257,2034.0,2033.5,0.001]
[1773116351528,0.47535257,2034.0,2033.5,0.001]
[1773116352318,0.47335257,2033.8,2033.5,0.001]
[1773116352546,0.47335257,2033.7,2033.5,0.001]
[1773116353358,1.278,2033.8,2033.5,0.001]
[1773116353522,0.002,2033.7,2033.5,0.001]
[1773116354860,0.002,2034.1,2033.5,0.47798569]
[1773116355066,1.23105077,2034.1,2033.5,0.47798569]
[1773116356651,0.002,2034.1,2033.5,0.47798569]
[1773116356822,0.002,2034.1,2033.6,1.70633266]
[1773116357444,0.002,2034.1,2033.7,0.47698569]
[1773116359359,0.002,2034.1,2033.7,1.70623217]
[1773116361135,0.002,2034.1,2033.8,0.47698569]
[1773116361629,0.002,2034.1,2033.9,0.001]
[1773116363870,0.002,2034.3,2033.9,0.47798569]
[1773116364074,0.002,2034.4,2034.1,0.47698569]
[1773116365940,0.002,2034.6,2034.4,0.47698569]
[1773116367835,0.002,2034.6,2034.4,1.70579236]
[1773116368037,0.002,2034.6,2034.5,0.47698569]
[1773116369765,1.70378613,2035.2,2034.5,0.47698569]
[1773116369968,1.23043356,2035.2,2034.6,1.22874275]
[1773116370270,0.47335257,2035.1,2034.6,1.22874275]
[1773116371369,0.47335257,2035.1,2034.5,1.70574412]
[1773116372766,1.70180409,2035.1,2034.6,0.47698569]
[1773116373439,0.49014562,2035.0,2034.0,0.4526572]
[1773116373639,0.49014562,2035.0,2034.1,0.4526572]
[1773116374271,0.49014562,2035.0,2033.9,1.68278731]
[1773116374483,0.49014562,2035.0,2033.9,1.23015981]
[1773116374645,0.49014562,2035.0,2033.9,1.23015898]
[1773116375270,0.49014562,2034.8,2033.9,0.001]
[1773116375581,0.49014562,2034.6,2033.9,0.001]
[1773116376479,0.49014562,2034.6,2033.9,0.4536572]
[1773116376480,1.77114562,2034.6,2033.9,0.4536572]
[1773116376980,0.49014562,2034.6,2033.9,0.4536572]
[1773116377477,1.71892958,2034.6,2034.0,1.68176241]
[1773116379196,0.49014562,2034.6,2034.0,1.68176241]
[1773116380984,2.99978022,2034.8,2034.1,0.4526572]
[1773116381790,2.99978022,2034.8,2034.2,1.22898436]
[1773116381962,1.77114562,2034.8,2034.2,1.68164156]
[1773116382484,1.77114562,2034.8,2034.3,0.4526572]
[1773116383360,2.99977728,2034.8,2034.3,0.4526572]
[1773116383561,0.49014562,2034.7,2034.2,0.4526572]
[1773116383881,0.49014562,2034.7,2034.3,1.22892395]
[1773116384284,0.002,2034.9,2034.7,0.4526572]
[1773116386292,0.002,2035.1,2034.8,1.68127917]
[1773116386756,0.002,2035.1,2034.8,0.4526572]
[1773116387587,0.002,2034.8,2034.6,1.68135233]
[1773116387883,0.002,2034.8,2034.4,0.4526572]
[1773116388492,0.002,2034.8,2034.5,1.22880314]
[1773116388861,0.002,2034.8,2034.5,1.71318306]
[1773116390390,0.002,2034.8,2034.5,1.71315443]
[1773116390591,0.002,2034.8,2034.5,1.71317343]
[1773116392787,0.49127417,2035.0,2034.6,0.48437992]
[1773116392788,0.002,2035.0,2034.6,0.48437992]
[1773116396796,0.002,2035.0,2034.7,1.71306228]
[1773116399797,0.002,2035.0,2034.7,1.71305788]
[1773116400494,0.49127417,2035.0,2034.5,0.48437992]
[1773116400889,0.002,2035.0,2034.5,0.48437992]
[1773116401500,0.002,2035.0,2034.7,0.001]
[1773116402001,0.48927417,2034.7,2034.3,0.48437992]
[1773116402217,0.48927417,2034.7,2034.5,0.001]
[1773116402506,0.002,2034.8,2034.5,0.001]
[1773116403808,0.002,2034.8,2034.5,0.49474976]
[1773116404309,0.002,2034.8,2034.6,1.22874275]
[1773116405177,0.002,2034.8,2034.6,1.72249251]
[1773116405604,0.002,2035.2,2034.7,0.49374976]
[1773116405810,0.48698168,2035.2,2034.7,0.49374976]
[1773116406809,0.48498168,2035.1,2034.6,1.22869385]
[1773116407011,0.48498168,2035.1,2034.5,1.22978854]
[1773116407813,0.48498168,2035.1,2034.5,1.7235383]
[1773116408126,0.48498168,2035.1,2034.6,0.49374976]
[1773116408834,0.002,2035.2,2034.8,0.49374976]
[1773116408995,1.7153623,2035.2,2034.7,1.22868236]
[1773116409202,0.48498168,2035.1,2034.6,1.72245996]
[1773116409412,0.48498168,2035.1,2034.6,1.2287102]
[1773116409640,0.48498168,2035.1,2034.5,0.001]
[1773116409925,0.48498168,2035.1,2034.5,1.72352691]
[1773116410825,1.22849241,2035.1,2034.5,1.72352691]
[1773116411028,0.48498168,2035.1,2034.5,1.72352691]
[1773116411421,0.48498168,2035.0,2034.5,1.72352691]
[1773116411839,0.48498168,2035.0,2034.5,0.001]
[1773116412044,0.48498168,2035.0,2034.5,1.22979536]
[1773116413229,0.48498168,2035.0,2034.5,0.001]
[1773116413431,0.48498168,2035.0,2034.2,0.001]
[1773116413432,0.48498168,2034.9,2034.2,0.001]
[1773116413729,0.48498168,2034.9,2034.2,1.22997567]
[1773116415434,0.48498168,2034.7,2034.2,0.001]
[1773116416006,0.48498168,2034.7,2034.5,0.001]
[1773116417409,0.002,2034.8,2034.6,1.22874275]
[1773116417742,0.002,2034.8,2034.6,1.72249251]
[1773116421055,0.002,2035.0,2034.7,0.49374976]
[1773116423450,0.002,2035.0,2034.8,1.22862197]
[1773116424144,0.002,2035.0,2034.8,1.72237173]
[1773116424349,0.002,2035.0,2034.9,0.49374976]
[1773116425646,0.002,2035.0,2034.7,1.22868236]
[1773116426522,0.002,2035.0,2034.6,1.72245932]
[1773116428550,0.48698168,2035.0,2034.6,1.22870956]
[1773116428853,0.48698168,2035.0,2034.7,0.001]
[1773116429353,0.002,2034.8,2034.7,0.001]
[1773116433951,0.46508956,2034.8,2034.7,0.001]
[1773116435426,0.002,2034.8,2034.7,0.001]
[1773116436151,0.002,2034.8,2034.7,0.45663512]
[1773116436357,0.002,2035.0,2034.7,0.45663512]
[1773116436871,0.002,2035.0,2034.8,1.22862197]
[1773116437429,0.002,2035.0,2034.8,1.68425709]
[1773116440244,0.002,2035.2,2034.9,0.45563512]
[1773116441158,0.002,2035.2,2035.0,1.68413634]
[1773116441666,0.002,2035.4,2035.1,0.45563512]
[1773116443078,0.002,2035.6,2035.4,0.45563512]
[1773116445353,0.002,2035.6,2035.5,1.22819945]
[1773116445659,0.002,2035.6,2035.4,1.68385311]
[1773116446548,0.46508956,2035.9,2035.4,1.22821799]
[1773116447071,0.46308956,2035.8,2035.3,1.22827964]
[1773116447446,1.22802728,2035.8,2035.2,5.36910064]
[1773116447648,0.46308956,2035.7,2035.2,5.36910064]
[1773116448042,0.46308956,2035.7,2035.2,1.2283805]
[1773116448243,0.46308956,2035.7,2034.9,1.68515246]
[1773116448471,0.46308956,2035.7,2035.0,0.45563512]
[1773116450743,1.22813912,2035.6,2035.1,1.22844086]
[1773116450943,0.46308956,2035.6,2035.1,1.68407598]
[1773116451676,0.46308956,2035.6,2035.2,0.45748674]
[1773116453477,0.46308956,2035.6,2035.3,1.22832014]
[1773116453645,0.48760898,2035.8,2035.4,0.45748674]
[1773116454365,0.002,2035.7,2035.4,0.45748674]
[1773116456777,0.002,2035.7,2035.5,1.22819945]
[1773116459483,0.002,2035.7,2035.5,1.68568619]
[1773116462555,0.002,2035.7,2035.5,0.45748674]
[1773116462951,0.48960898,2035.7,2035.2,1.22937229]
[1773116463391,0.48960898,2035.7,2035.2,1.68685903]
[1773116464192,0.48960898,2035.7,2035.3,0.46059749]
[1773116466770,0.002,2035.7,2035.5,0.001]
[1773116466981,0.002,2035.7,2035.5,0.46159749]
[1773116469211,0.002,2035.7,2035.6,1.22813912]
[1773116469383,0.002,2036.0,2035.7,0.46059749]
[1773116469570,0.48994331,2036.2,2035.7,0.46059749]
[1773116471299,0.48994331,2036.2,2035.8,1.22801846]
[1773116471501,0.48994331,2036.2,2035.8,1.68861595]
[1773116471802,0.48994331,2036.2,2035.8,1.22801846]
[1773116472110,0.48994331,2036.2,2035.9,0.46059749]
[1773116473494,0.48994331,2036.2,2036.0,1.22789783]
[1773116473800,0.48794331,2036.1,2035.7,0.46059749]
[1773116473982,0.48794331,2036.1,2035.5,0.001]
[1773116474179,0.48794331,2036.1,2035.6,0.46059749]
[1773116474414,0.002,2036.2,2035.6,0.46059749]
[1773116474718,0.48794331,2036.1,2035.6,0.46059749]
[1773116475580,0.48794331,2036.1,2035.7,1.22807879]
[1773116477411,0.48794331,2036.1,2035.7,0.46059749]
[1773116477907,1.229779,2036.2,2035.7,0.46059749]
[1773116477908,0.002,2036.2,2035.7,0.46059749]